[Event "Titled Tuesday Blitz July 6 2021"]
[White "Deviprasath, Sharvesh"]
[Black "Samunenkov, Ihor"]
[WhiteFideId "30938228"]
[BlackFideId "14187086"]
[WhiteElo "2102"]
[BlackElo "2281"]
[Result "1/2-1/2"]
[Round "04"]
[TimeControl "180+1"]
[Date "2021.07.06"]
[WhiteClock "0:00:40"]
[BlackClock "0:00:09"]

1. Nf3 {[%clk 0:03:00]}  c5 {[%clk 0:02:59]} 2. c4 {[%clk 0:03:01]}  Nc6 {[%clk 0:02:59]} 3. Nc3 {[%clk 0:03:02]}  e5 {[%clk 0:02:58]} 4. e3 {[%clk 0:02:50]}  Nf6 {[%clk 0:02:58]} 5. d4 {[%clk 0:02:45]}  e4 {[%clk 0:02:58]} 6. d5 {[%clk 0:02:44]}  exf3 {[%clk 0:02:56]} 7. dxc6 {[%clk 0:02:45]}  dxc6 {[%clk 0:02:56]} 8. Qxd8+ {[%clk 0:02:33]}  Kxd8 {[%clk 0:02:57]} 9. gxf3 {[%clk 0:02:26]}  Kc7 {[%clk 0:02:57]} 10. Rg1 {[%clk 0:02:24]}  g6 {[%clk 0:02:51]} 11. Bd2 {[%clk 0:02:04]}  Bg7 {[%clk 0:02:49]} 12. O-O-O {[%clk 0:02:00]}  Be6 {[%clk 0:02:34]} 13. h4 {[%clk 0:01:49]}  Rad8 {[%clk 0:02:31]} 14. Rg3 {[%clk 0:01:42]}  Nh5 {[%clk 0:02:25]} 15. Rg1 {[%clk 0:01:38]}  f5 {[%clk 0:02:22]} 16. f4 {[%clk 0:01:32]}  Bf6 {[%clk 0:01:54]} 17. Be2 {[%clk 0:01:24]}  Bxh4 {[%clk 0:01:41]} 18. Bxh5 {[%clk 0:01:19]}  gxh5 {[%clk 0:01:41]} 19. Rh1 {[%clk 0:01:20]}  Bxf2 {[%clk 0:01:27]} 20. Rxh5 {[%clk 0:01:19]}  Rd3 {[%clk 0:00:50]} 21. Na4 {[%clk 0:01:12]}  Bxc4 {[%clk 0:00:33]} 22. Nxc5 {[%clk 0:00:57]}  Rd5 {[%clk 0:00:29]} 23. Ne6+ {[%clk 0:00:54]}  Kd7 {[%clk 0:00:29]} 24. Nd4 {[%clk 0:00:54]}  Bd3 {[%clk 0:00:25]} 25. Rh2 {[%clk 0:00:42]}  Bg3 {[%clk 0:00:17]} 26. Rh3 {[%clk 0:00:40]}  Bf2 {[%clk 0:00:11]} 27. Rh2 {[%clk 0:00:40]}  Bg3 {[%clk 0:00:09]} 28. Rh3 {[%clk 0:00:40]}  Bf2 {[%clk 0:00:09]} 29. Rh2 {[%clk 0:00:40]} 1/2-1/2


[Site "https://www.chess.com"]

[Event "Titled Tuesday Blitz July 6 2021"]
[White "Dubov, Daniil"]
[Black "Travadon, Loic"]
[WhiteFideId "24126055"]
[BlackFideId "26092131"]
[WhiteElo "2722"]
[BlackElo "2095"]
[Result "1-0"]
[Round "04"]
[TimeControl "180+1"]
[Date "2021.07.06"]
[WhiteClock "0:01:00"]
[BlackClock "0:01:24"]

1. d4 {[%clk 0:03:00]}  g6 {[%clk 0:03:00]} 2. Nf3 {[%clk 0:03:01]}  Bg7 {[%clk 0:03:00]} 3. e4 {[%clk 0:03:02]}  d6 {[%clk 0:03:00]} 4. Bc4 {[%clk 0:03:02]}  e6 {[%clk 0:03:00]} 5. O-O {[%clk 0:03:02]}  h6 {[%clk 0:02:59]} 6. Re1 {[%clk 0:03:02]}  a6 {[%clk 0:02:59]} 7. Nbd2 {[%clk 0:03:02]}  Nf6 {[%clk 0:02:59]} 8. e5 {[%clk 0:03:01]}  Nfd7 {[%clk 0:02:52]} 9. exd6 {[%clk 0:02:58]}  cxd6 {[%clk 0:02:52]} 10. Ne4 {[%clk 0:02:49]}  Nb6 {[%clk 0:02:52]} 11. Bd3 {[%clk 0:02:45]}  Nc6 {[%clk 0:02:51]} 12. Bf4 {[%clk 0:02:44]}  d5 {[%clk 0:02:48]} 13. Nd6+ {[%clk 0:02:43]}  Kf8 {[%clk 0:02:47]} 14. Bg3 {[%clk 0:02:37]}  Bf6 {[%clk 0:02:45]} 15. Ne5 {[%clk 0:02:25]}  Nxe5 {[%clk 0:02:42]} 16. dxe5 {[%clk 0:02:26]}  Be7 {[%clk 0:02:39]} 17. Bxg6 {[%clk 0:02:09]}  Bxd6 {[%clk 0:02:32]} 18. Qf3 {[%clk 0:02:08]}  f5 {[%clk 0:02:29]} 19. exd6 {[%clk 0:02:04]}  Rg8 {[%clk 0:02:18]} 20. Bxf5 {[%clk 0:01:56]}  Qf6 {[%clk 0:02:15]} 21. Bxe6 {[%clk 0:01:44]}  Qxf3 {[%clk 0:02:10]} 22. gxf3 {[%clk 0:01:45]}  Rg6 {[%clk 0:02:07]} 23. Bxc8 {[%clk 0:01:38]}  Rxc8 {[%clk 0:02:08]} 24. c3 {[%clk 0:01:33]}  h5 {[%clk 0:02:04]} 25. Kh1 {[%clk 0:01:32]}  Nc4 {[%clk 0:01:58]} 26. Rad1 {[%clk 0:01:29]}  h4 {[%clk 0:01:54]} 27. Bxh4 {[%clk 0:01:25]}  Nxd6 {[%clk 0:01:53]} 28. Rxd5 {[%clk 0:01:24]}  Re8 {[%clk 0:01:47]} 29. Rxe8+ {[%clk 0:01:20]}  Kxe8 {[%clk 0:01:46]} 30. Bg3 {[%clk 0:01:17]}  Nc4 {[%clk 0:01:44]} 31. b3 {[%clk 0:01:18]}  Nb6 {[%clk 0:01:43]} 32. Rd6 {[%clk 0:01:15]}  Rxd6 {[%clk 0:01:41]} 33. Bxd6 {[%clk 0:01:16]}  Nd5 {[%clk 0:01:41]} 34. Be5 {[%clk 0:01:16]}  Kf7 {[%clk 0:01:37]} 35. Kg2 {[%clk 0:01:16]}  Ke6 {[%clk 0:01:38]} 36. f4 {[%clk 0:01:16]}  Kf5 {[%clk 0:01:38]} 37. Kf3 {[%clk 0:01:16]}  b5 {[%clk 0:01:37]} 38. h4 {[%clk 0:01:15]}  a5 {[%clk 0:01:37]} 39. h5 {[%clk 0:01:15]}  a4 {[%clk 0:01:38]} 40. bxa4 {[%clk 0:01:14]}  bxa4 {[%clk 0:01:38]} 41. h6 {[%clk 0:01:09]}  Kg6 {[%clk 0:01:36]} 42. Ke4 {[%clk 0:01:09]}  Nb6 {[%clk 0:01:36]} 43. Bg7 {[%clk 0:01:05]}  a3 {[%clk 0:01:30]} 44. f5+ {[%clk 0:01:02]}  Kf7 {[%clk 0:01:29]} 45. Bd4 {[%clk 0:01:01]}  Kg8 {[%clk 0:01:24]} 46. Bxb6 {[%clk 0:01:00]} 1-0


[Site "https://www.chess.com"]

[Event "Titled Tuesday Blitz July 6 2021"]
[White "Espinosa Veloz, Ermes"]
[Black "Maghsoodloo, Parham"]
[WhiteFideId "3507424"]
[BlackFideId "12539929"]
[WhiteElo "2333"]
[BlackElo "2601"]
[Result "0-1"]
[Round "04"]
[TimeControl "180+1"]
[Date "2021.07.06"]
[WhiteClock "0:00:07"]
[BlackClock "0:01:20"]

1. e4 {[%clk 0:03:00]}  e5 {[%clk 0:02:59]} 2. Nf3 {[%clk 0:02:59]}  Nc6 {[%clk 0:02:58]} 3. Bc4 {[%clk 0:02:59]}  Bc5 {[%clk 0:02:57]} 4. c3 {[%clk 0:02:59]}  Nf6 {[%clk 0:02:57]} 5. b4 {[%clk 0:02:58]}  Bb6 {[%clk 0:02:57]} 6. d3 {[%clk 0:02:57]}  d6 {[%clk 0:02:54]} 7. O-O {[%clk 0:02:55]}  Be6 {[%clk 0:02:54]} 8. Nbd2 {[%clk 0:02:54]}  O-O {[%clk 0:02:54]} 9. a4 {[%clk 0:02:53]}  a5 {[%clk 0:02:53]} 10. b5 {[%clk 0:02:54]}  Ne7 {[%clk 0:02:52]} 11. h3 {[%clk 0:02:54]}  Ng6 {[%clk 0:02:52]} 12. Bxe6 {[%clk 0:02:26]}  fxe6 {[%clk 0:02:44]} 13. Nc4 {[%clk 0:02:27]}  Bc5 {[%clk 0:02:43]} 14. Be3 {[%clk 0:02:23]}  Bxe3 {[%clk 0:02:36]} 15. fxe3 {[%clk 0:02:24]}  Nd7 {[%clk 0:02:36]} 16. Kh2 {[%clk 0:02:12]}  d5 {[%clk 0:02:35]} 17. Ncd2 {[%clk 0:02:09]}  Nc5 {[%clk 0:02:32]} 18. exd5 {[%clk 0:01:56]}  exd5 {[%clk 0:02:31]} 19. d4 {[%clk 0:01:51]}  Nd3 {[%clk 0:02:22]} 20. Qb3 {[%clk 0:01:13]}  Kh8 {[%clk 0:02:21]} 21. c4 {[%clk 0:01:01]}  dxc4 {[%clk 0:02:11]} 22. Qxc4 {[%clk 0:00:59]}  Nb4 {[%clk 0:02:11]} 23. d5 {[%clk 0:00:50]}  Nxd5 {[%clk 0:02:09]} 24. Rae1 {[%clk 0:00:48]}  Nb6 {[%clk 0:02:03]} 25. Qb3 {[%clk 0:00:48]}  Qd6 {[%clk 0:02:01]} 26. Ne4 {[%clk 0:00:48]}  Qb4 {[%clk 0:02:01]} 27. Qxb4 {[%clk 0:00:33]}  axb4 {[%clk 0:02:00]} 28. Rc1 {[%clk 0:00:34]}  Nd5 {[%clk 0:01:58]} 29. Rc5 {[%clk 0:00:33]}  Nge7 {[%clk 0:01:50]} 30. Rd1 {[%clk 0:00:29]}  b3 {[%clk 0:01:42]} 31. Nxe5 {[%clk 0:00:27]}  Rxa4 {[%clk 0:01:40]} 32. Ng5 {[%clk 0:00:25]}  b6 {[%clk 0:01:36]} 33. Rcc1 {[%clk 0:00:23]}  h6 {[%clk 0:01:31]} 34. Ne6 {[%clk 0:00:22]}  Rf2 {[%clk 0:01:26]} 35. Rf1 {[%clk 0:00:15]}  b2 {[%clk 0:01:24]} 36. Rb1 {[%clk 0:00:08]}  Rxf1 {[%clk 0:01:21]} 37. Rxf1 {[%clk 0:00:09]}  Ra1 {[%clk 0:01:22]} 38. Rf8+ {[%clk 0:00:09]}  Kh7 {[%clk 0:01:22]} 39. Nf4 {[%clk 0:00:07]}  Nxf4 {[%clk 0:01:21]} 40. exf4 {[%clk 0:00:07]}  b1=Q {[%clk 0:01:20]} 0-1


[Site "https://www.chess.com"]

[Event "Titled Tuesday Blitz July 6 2021"]
[White "Grischuk, Alexander"]
[Black "Vogel, Roven"]
[WhiteFideId "4126025"]
[BlackFideId "12908088"]
[WhiteElo "2765"]
[BlackElo "2516"]
[Result "1-0"]
[Round "04"]
[TimeControl "180+1"]
[Date "2021.07.06"]
[WhiteClock "0:00:14"]
[BlackClock "0:00:02"]

1. e4 {[%clk 0:03:00]}  e5 {[%clk 0:02:52]} 2. Nf3 {[%clk 0:03:00]}  Nc6 {[%clk 0:02:52]} 3. Bb5 {[%clk 0:02:59]}  Nf6 {[%clk 0:02:53]} 4. d3 {[%clk 0:02:59]}  Bc5 {[%clk 0:02:52]} 5. Bxc6 {[%clk 0:02:58]}  dxc6 {[%clk 0:02:52]} 6. Nc3 {[%clk 0:02:59]}  O-O {[%clk 0:02:51]} 7. Bg5 {[%clk 0:02:58]}  Qd6 {[%clk 0:02:49]} 8. h3 {[%clk 0:02:54]}  a5 {[%clk 0:02:45]} 9. a4 {[%clk 0:02:50]}  Re8 {[%clk 0:02:44]} 10. O-O {[%clk 0:02:43]}  Nd7 {[%clk 0:02:43]} 11. Ne2 {[%clk 0:02:42]}  Nf8 {[%clk 0:02:43]} 12. Ng3 {[%clk 0:02:42]}  Qg6 {[%clk 0:02:41]} 13. Kh2 {[%clk 0:02:39]}  f5 {[%clk 0:01:55]} 14. exf5 {[%clk 0:02:29]}  Bxf5 {[%clk 0:01:55]} 15. Be3 {[%clk 0:02:18]}  Bxe3 {[%clk 0:01:34]} 16. fxe3 {[%clk 0:02:18]}  Bd7 {[%clk 0:01:28]} 17. Qd2 {[%clk 0:02:16]}  Qd6 {[%clk 0:01:15]} 18. e4 {[%clk 0:02:11]}  Ng6 {[%clk 0:01:12]} 19. b3 {[%clk 0:02:05]}  b6 {[%clk 0:01:12]} 20. Rf2 {[%clk 0:02:04]}  Rf8 {[%clk 0:01:11]} 21. Raf1 {[%clk 0:02:03]}  Rf4 {[%clk 0:01:11]} 22. Nh5 {[%clk 0:01:57]}  Rff8 {[%clk 0:01:08]} 23. Qg5 {[%clk 0:01:54]}  Qc5 {[%clk 0:00:46]} 24. Qd2 {[%clk 0:01:26]}  Qd6 {[%clk 0:00:32]} 25. Kg1 {[%clk 0:01:23]}  h6 {[%clk 0:00:29]} 26. Qc3 {[%clk 0:01:22]}  c5 {[%clk 0:00:28]} 27. Nd2 {[%clk 0:01:11]}  Rxf2 {[%clk 0:00:27]} 28. Rxf2 {[%clk 0:01:11]}  Qd4 {[%clk 0:00:27]} 29. Qc4+ {[%clk 0:01:10]}  Qxc4 {[%clk 0:00:24]} 30. Nxc4 {[%clk 0:01:10]}  Rf8 {[%clk 0:00:23]} 31. g4 {[%clk 0:01:04]}  Be6 {[%clk 0:00:20]} 32. Ne3 {[%clk 0:01:03]}  Nf4 {[%clk 0:00:19]} 33. Nxf4 {[%clk 0:00:58]}  exf4 {[%clk 0:00:20]} 34. Nf5 {[%clk 0:00:59]}  g6 {[%clk 0:00:18]} 35. Nxh6+ {[%clk 0:00:49]}  Kg7 {[%clk 0:00:18]} 36. g5 {[%clk 0:00:48]}  Bxh3 {[%clk 0:00:18]} 37. Rh2 {[%clk 0:00:49]}  Be6 {[%clk 0:00:17]} 38. Kf2 {[%clk 0:00:49]}  c6 {[%clk 0:00:16]} 39. Kf3 {[%clk 0:00:47]}  b5 {[%clk 0:00:16]} 40. Ng4 {[%clk 0:00:38]}  Bxg4+ {[%clk 0:00:12]} 41. Kxg4 {[%clk 0:00:38]}  bxa4 {[%clk 0:00:11]} 42. bxa4 {[%clk 0:00:39]}  Rb8 {[%clk 0:00:10]} 43. Kxf4 {[%clk 0:00:34]}  Rb4 {[%clk 0:00:10]} 44. Ke5 {[%clk 0:00:32]}  Rxa4 {[%clk 0:00:10]} 45. Kd6 {[%clk 0:00:27]}  c4 {[%clk 0:00:09]} 46. Kxc6 {[%clk 0:00:23]}  cxd3 {[%clk 0:00:09]} 47. cxd3 {[%clk 0:00:24]}  Ra1 {[%clk 0:00:10]} 48. d4 {[%clk 0:00:21]}  a4 {[%clk 0:00:11]} 49. e5 {[%clk 0:00:19]}  a3 {[%clk 0:00:04]} 50. Kd6 {[%clk 0:00:17]}  a2 {[%clk 0:00:04]} 51. d5 {[%clk 0:00:17]}  Kf7 {[%clk 0:00:03]} 52. e6+ {[%clk 0:00:17]}  Kg7 {[%clk 0:00:03]} 53. e7 {[%clk 0:00:14]}  Kf7 {[%clk 0:00:02]} 54. Rf2+ {[%clk 0:00:14]} 1-0


[Site "https://www.chess.com"]

[Event "Titled Tuesday Blitz July 6 2021"]
[White "Hamley, Ryan"]
[Black "Kobo, Ori"]
[WhiteFideId "30959497"]
[BlackFideId "2812320"]
[WhiteElo "2458"]
[BlackElo "2431"]
[Result "0-1"]
[Round "04"]
[TimeControl "180+1"]
[Date "2021.07.06"]
[WhiteClock "0:00:01"]
[BlackClock "0:00:57"]

1. e4 {[%clk 0:03:00]}  c5 {[%clk 0:03:00]} 2. Nf3 {[%clk 0:02:59]}  d6 {[%clk 0:03:00]} 3. c3 {[%clk 0:02:55]}  Nf6 {[%clk 0:02:58]} 4. Bd3 {[%clk 0:02:51]}  Nc6 {[%clk 0:02:54]} 5. Bc2 {[%clk 0:02:50]}  Bg4 {[%clk 0:02:49]} 6. d3 {[%clk 0:02:45]}  e6 {[%clk 0:02:49]} 7. Nbd2 {[%clk 0:02:42]}  Be7 {[%clk 0:02:49]} 8. h3 {[%clk 0:02:39]}  Bh5 {[%clk 0:02:49]} 9. Nf1 {[%clk 0:02:40]}  Ne5 {[%clk 0:02:35]} 10. g4 {[%clk 0:02:38]}  Nxf3+ {[%clk 0:02:29]} 11. Qxf3 {[%clk 0:02:36]}  Bg6 {[%clk 0:02:30]} 12. Ng3 {[%clk 0:02:34]}  Nd7 {[%clk 0:02:27]} 13. Be3 {[%clk 0:02:23]}  O-O {[%clk 0:02:01]} 14. Qe2 {[%clk 0:02:18]}  Bh4 {[%clk 0:01:49]} 15. O-O {[%clk 0:01:42]}  d5 {[%clk 0:01:44]} 16. Rad1 {[%clk 0:01:23]}  Qc7 {[%clk 0:01:36]} 17. Kg2 {[%clk 0:01:17]}  Qc6 {[%clk 0:01:27]} 18. exd5 {[%clk 0:01:11]}  exd5 {[%clk 0:01:25]} 19. d4 {[%clk 0:01:06]}  Bxg3 {[%clk 0:01:17]} 20. Kxg3 {[%clk 0:00:41]}  c4 {[%clk 0:01:10]} 21. Rde1 {[%clk 0:00:12]}  Rae8 {[%clk 0:01:06]} 22. Qd2 {[%clk 0:00:08]}  f5 {[%clk 0:00:59]} 23. gxf5 {[%clk 0:00:01]}  Bxf5 {[%clk 0:00:57]} 24. Bxf5 {[%clk 0:00:01]}  Rxf5 {[%clk 0:00:57]} 0-1


[Site "https://www.chess.com"]

[Event "Titled Tuesday Blitz July 6 2021"]
[White "Hryshchenko, Kamila"]
[Black "Gracia Alvarez, Gerardo Antonio"]
[WhiteFideId "14147491"]
[BlackFideId "5109124"]
[WhiteElo "1966"]
[BlackElo "2148"]
[Result "0-1"]
[Round "04"]
[TimeControl "180+1"]
[Date "2021.07.06"]
[WhiteClock "0:00:16"]
[BlackClock "0:00:06"]

1. e4 {[%clk 0:03:00]}  c5 {[%clk 0:02:59]} 2. Nf3 {[%clk 0:03:00]}  Nc6 {[%clk 0:03:00]} 3. Bb5 {[%clk 0:03:00]}  g6 {[%clk 0:03:00]} 4. Nc3 {[%clk 0:02:56]}  Bg7 {[%clk 0:02:50]} 5. O-O {[%clk 0:02:56]}  Nd4 {[%clk 0:02:40]} 6. Nxd4 {[%clk 0:02:56]}  cxd4 {[%clk 0:02:39]} 7. Ne2 {[%clk 0:02:56]}  e6 {[%clk 0:02:38]} 8. c3 {[%clk 0:02:56]}  a6 {[%clk 0:02:32]} 9. Ba4 {[%clk 0:02:56]}  d3 {[%clk 0:02:21]} 10. Nf4 {[%clk 0:02:56]}  b5 {[%clk 0:02:22]} 11. Bb3 {[%clk 0:02:55]}  Bb7 {[%clk 0:02:22]} 12. Re1 {[%clk 0:02:49]}  Ne7 {[%clk 0:02:16]} 13. Nxd3 {[%clk 0:02:49]}  O-O {[%clk 0:02:17]} 14. Nc5 {[%clk 0:02:48]}  Bc6 {[%clk 0:02:16]} 15. d4 {[%clk 0:02:48]}  d5 {[%clk 0:02:15]} 16. e5 {[%clk 0:02:48]}  Nc8 {[%clk 0:02:08]} 17. Bc2 {[%clk 0:02:41]}  Nb6 {[%clk 0:02:07]} 18. Bf4 {[%clk 0:02:38]}  Nd7 {[%clk 0:02:07]} 19. Nd3 {[%clk 0:02:33]}  f6 {[%clk 0:02:05]} 20. exf6 {[%clk 0:02:30]}  Qxf6 {[%clk 0:02:05]} 21. Qd2 {[%clk 0:02:30]}  Rae8 {[%clk 0:02:03]} 22. Bg5 {[%clk 0:02:27]}  Qf7 {[%clk 0:02:02]} 23. f4 {[%clk 0:02:25]}  Nb6 {[%clk 0:01:48]} 24. b3 {[%clk 0:02:20]}  Nc8 {[%clk 0:01:48]} 25. Ne5 {[%clk 0:02:18]}  Qb7 {[%clk 0:01:45]} 26. Re2 {[%clk 0:02:13]}  Nd6 {[%clk 0:01:45]} 27. Rae1 {[%clk 0:02:12]}  Bd7 {[%clk 0:01:32]} 28. Qe3 {[%clk 0:02:02]}  Nf5 {[%clk 0:01:31]} 29. Qh3 {[%clk 0:01:57]}  Qc7 {[%clk 0:01:21]} 30. g4 {[%clk 0:01:54]}  Nd6 {[%clk 0:01:21]} 31. Re3 {[%clk 0:01:52]}  Bc8 {[%clk 0:01:19]} 32. Qh4 {[%clk 0:01:35]}  b4 {[%clk 0:01:19]} 33. Rh3 {[%clk 0:01:30]}  Bxe5 {[%clk 0:01:17]} 34. fxe5 {[%clk 0:01:29]}  Ne4 {[%clk 0:01:12]} 35. Bxe4 {[%clk 0:01:25]}  dxe4 {[%clk 0:01:13]} 36. c4 {[%clk 0:01:25]}  Rf3 {[%clk 0:01:08]} 37. Rxe4 {[%clk 0:01:21]}  Qf7 {[%clk 0:00:55]} 38. Bf6 {[%clk 0:01:17]}  Rxh3 {[%clk 0:00:53]} 39. Qxh3 {[%clk 0:01:18]}  Bb7 {[%clk 0:00:52]} 40. Rf4 {[%clk 0:01:18]}  Ba8 {[%clk 0:00:52]} 41. Qh6 {[%clk 0:01:18]}  Qb7 {[%clk 0:00:51]} 42. d5 {[%clk 0:01:04]}  exd5 {[%clk 0:00:50]} 43. cxd5 {[%clk 0:01:05]}  Rc8 {[%clk 0:00:47]} 44. Rc4 {[%clk 0:00:58]}  Rc7 {[%clk 0:00:33]} 45. Kf2 {[%clk 0:00:37]}  Qb6+ {[%clk 0:00:27]} 46. Qe3 {[%clk 0:00:28]}  Qb7 {[%clk 0:00:27]} 47. Qd4 {[%clk 0:00:24]}  Rd7 {[%clk 0:00:24]} 48. Rc5 {[%clk 0:00:17]}  Rxd5 {[%clk 0:00:24]} 49. Rxd5 {[%clk 0:00:17]}  Qxd5 {[%clk 0:00:24]} 50. Qxd5+ {[%clk 0:00:17]}  Bxd5 {[%clk 0:00:25]} 51. Ke3 {[%clk 0:00:18]}  Kf7 {[%clk 0:00:24]} 52. Bd8 {[%clk 0:00:18]}  Ke6 {[%clk 0:00:23]} 53. Kd4 {[%clk 0:00:18]}  Bf3 {[%clk 0:00:23]} 54. Ba5 {[%clk 0:00:17]}  Bxg4 {[%clk 0:00:23]} 55. Bxb4 {[%clk 0:00:18]}  Bf5 {[%clk 0:00:23]} 56. Bd2 {[%clk 0:00:18]}  Bb1 {[%clk 0:00:22]} 57. a4 {[%clk 0:00:17]}  Bc2 {[%clk 0:00:19]} 58. Kc3 {[%clk 0:00:18]}  Bd1 {[%clk 0:00:20]} 59. Bf4 {[%clk 0:00:18]}  g5 {[%clk 0:00:19]} 60. Bg3 {[%clk 0:00:17]}  h5 {[%clk 0:00:19]} 61. h3 {[%clk 0:00:16]}  h4 {[%clk 0:00:19]} 62. Bh2 {[%clk 0:00:16]}  Be2 {[%clk 0:00:19]} 63. b4 {[%clk 0:00:16]}  Bf1 {[%clk 0:00:19]} 64. Kd4 {[%clk 0:00:16]}  Bxh3 {[%clk 0:00:16]} 65. b5 {[%clk 0:00:16]}  axb5 {[%clk 0:00:16]} 66. axb5 {[%clk 0:00:17]}  Bg2 {[%clk 0:00:15]} 67. Ke3 {[%clk 0:00:17]}  Bb7 {[%clk 0:00:13]} 68. Kf2 {[%clk 0:00:16]}  Kf5 {[%clk 0:00:09]} 69. Ke3 {[%clk 0:00:15]}  g4 {[%clk 0:00:06]} 70. Kf2 {[%clk 0:00:15]}  Ke6 {[%clk 0:00:05]} 71. Ke3 {[%clk 0:00:15]}  g3 {[%clk 0:00:04]} 72. Bg1 {[%clk 0:00:08]}  Kxe5 {[%clk 0:00:03]} 73. Ke2 {[%clk 0:00:06]}  Kf5 {[%clk 0:00:03]} 74. Bc5 {[%clk 0:00:05]}  Kg4 {[%clk 0:00:01]} 75. Bd6 {[%clk 0:00:06]}  h3 {[%clk 0:00:01]} 76. Bxg3 {[%clk 0:00:07]}  Kxg3 {[%clk 0:00:01]} 77. Kf1 {[%clk 0:00:07]}  h2 {[%clk 0:00:02]} 78. Ke2 {[%clk 0:00:08]}  h1=Q {[%clk 0:00:02]} 79. Ke3 {[%clk 0:00:09]}  Qf3+ {[%clk 0:00:02]} 80. Kd4 {[%clk 0:00:10]}  Qd5+ {[%clk 0:00:03]} 81. Kc3 {[%clk 0:00:09]}  Qxb5 {[%clk 0:00:03]} 82. Kd4 {[%clk 0:00:09]}  Kf4 {[%clk 0:00:04]} 83. Kc3 {[%clk 0:00:10]}  Qc5+ {[%clk 0:00:04]} 84. Kb3 {[%clk 0:00:10]}  Ke5 {[%clk 0:00:04]} 85. Ka4 {[%clk 0:00:11]}  Ke4 {[%clk 0:00:04]} 86. Kb3 {[%clk 0:00:12]}  Kd3 {[%clk 0:00:04]} 87. Kb2 {[%clk 0:00:13]}  Qb5+ {[%clk 0:00:04]} 88. Kc1 {[%clk 0:00:13]}  Kc3 {[%clk 0:00:04]} 89. Kd1 {[%clk 0:00:14]}  Qd3+ {[%clk 0:00:04]} 90. Ke1 {[%clk 0:00:15]}  Qd2+ {[%clk 0:00:04]} 91. Kf1 {[%clk 0:00:15]}  Qg2+ {[%clk 0:00:05]} 92. Ke1 {[%clk 0:00:16]}  Kd3 {[%clk 0:00:05]} 93. Kd1 {[%clk 0:00:16]}  Qd2# {[%clk 0:00:06]} 0-1


[Site "https://www.chess.com"]

[Event "Titled Tuesday Blitz July 6 2021"]
[White "Jakubowski, Krzysztof"]
[Black "Svidler, Peter"]
[WhiteFideId "1112848"]
[BlackFideId "4102142"]
[WhiteElo "2462"]
[BlackElo "2743"]
[Result "1-0"]
[Round "04"]
[TimeControl "180+1"]
[Date "2021.07.06"]
[WhiteClock "0:00:03"]
[BlackClock "0:00:07"]

1. e4 {[%clk 0:03:00]}  c5 {[%clk 0:02:59]} 2. Nf3 {[%clk 0:03:00]}  Nc6 {[%clk 0:02:56]} 3. d4 {[%clk 0:02:59]}  cxd4 {[%clk 0:02:55]} 4. Nxd4 {[%clk 0:02:59]}  e6 {[%clk 0:02:56]} 5. Nc3 {[%clk 0:02:58]}  Qc7 {[%clk 0:02:56]} 6. Be3 {[%clk 0:02:57]}  a6 {[%clk 0:02:55]} 7. Qf3 {[%clk 0:02:56]}  Bd6 {[%clk 0:02:46]} 8. O-O-O {[%clk 0:02:42]}  Be5 {[%clk 0:02:45]} 9. Nde2 {[%clk 0:02:37]}  Nge7 {[%clk 0:02:38]} 10. Qh5 {[%clk 0:02:03]}  Ng6 {[%clk 0:01:56]} 11. g3 {[%clk 0:01:48]}  d6 {[%clk 0:01:55]} 12. f4 {[%clk 0:01:44]}  Bf6 {[%clk 0:01:55]} 13. Kb1 {[%clk 0:01:40]}  b5 {[%clk 0:01:49]} 14. Bg2 {[%clk 0:01:33]}  Bb7 {[%clk 0:01:46]} 15. f5 {[%clk 0:01:28]}  Nge7 {[%clk 0:01:02]} 16. fxe6 {[%clk 0:01:24]}  O-O {[%clk 0:01:02]} 17. exf7+ {[%clk 0:01:23]}  Rxf7 {[%clk 0:01:01]} 18. Bh3 {[%clk 0:00:50]}  Bc8 {[%clk 0:01:00]} 19. Bxc8 {[%clk 0:00:35]}  Rxc8 {[%clk 0:01:00]} 20. Rc1 {[%clk 0:00:33]}  Ne5 {[%clk 0:00:57]} 21. Bd4 {[%clk 0:00:28]}  b4 {[%clk 0:00:48]} 22. Nd5 {[%clk 0:00:25]}  Nxd5 {[%clk 0:00:48]} 23. exd5 {[%clk 0:00:26]}  Qc4 {[%clk 0:00:48]} 24. b3 {[%clk 0:00:22]}  Qxd5 {[%clk 0:00:45]} 25. Rhd1 {[%clk 0:00:21]}  Qb5 {[%clk 0:00:36]} 26. Qh3 {[%clk 0:00:20]}  Rfc7 {[%clk 0:00:31]} 27. Nf4 {[%clk 0:00:20]}  Re8 {[%clk 0:00:20]} 28. Nh5 {[%clk 0:00:18]}  Rf7 {[%clk 0:00:17]} 29. Re1 {[%clk 0:00:17]}  a5 {[%clk 0:00:16]} 30. Bxe5 {[%clk 0:00:14]}  Bxe5 {[%clk 0:00:16]} 31. Qg4 {[%clk 0:00:12]}  g6 {[%clk 0:00:16]} 32. Re4 {[%clk 0:00:10]}  Qc5 {[%clk 0:00:15]} 33. Nf4 {[%clk 0:00:09]}  Qc3 {[%clk 0:00:12]} 34. Rxe5 {[%clk 0:00:08]}  dxe5 {[%clk 0:00:13]} 35. Nxg6 {[%clk 0:00:07]}  hxg6 {[%clk 0:00:12]} 36. Qxg6+ {[%clk 0:00:08]}  Kf8 {[%clk 0:00:13]} 37. Qh6+ {[%clk 0:00:06]}  Ke7 {[%clk 0:00:13]} 38. Qg5+ {[%clk 0:00:06]}  Kd7 {[%clk 0:00:09]} 39. Rd1+ {[%clk 0:00:05]}  Kc8 {[%clk 0:00:10]} 40. Qg6 {[%clk 0:00:05]}  Rfe7 {[%clk 0:00:07]} 41. Qa6+ {[%clk 0:00:04]}  Kb8 {[%clk 0:00:07]} 42. Qb5+ {[%clk 0:00:04]}  Kc7 {[%clk 0:00:07]} 43. Qxa5+ {[%clk 0:00:04]}  Kc6 {[%clk 0:00:07]} 44. Qa6+ {[%clk 0:00:04]}  Kc5 {[%clk 0:00:07]} 45. Qd6+ {[%clk 0:00:02]}  Kb5 {[%clk 0:00:07]} 46. Rd5+ {[%clk 0:00:03]} 1-0


[Site "https://www.chess.com"]